fUSD/lending_fUSD_20240619
["ID","MTS","AMOUNT","RATE_DAILY","PERIOD"]
[329864869,1718773849319,-500.0,0.00013698,2]
[329864870,1718773849328,-1097.02,0.00013698,2]
[329864871,1718773849338,-500.0,0.00013698,2]
[329864872,1718773849347,-500.0,0.00013698,2]
[329864873,1718773849357,-500.0,0.00013698,2]
[329864874,1718773849368,-1812.78,0.00013698,2]
[329864875,1718773849376,-503.75247876,0.00013698,2]
[329864876,1718773849385,-542.06,0.00013698,2]
[329864877,1718773849394,-837.26,0.00013698,2]
[329864878,1718773849403,-500.0,0.00013698,2]
[329864879,1718773849413,-500.0,0.00013698,2]
[329864880,1718773849422,-500.0,0.00013698,2]
[329864881,1718773849431,-500.0,0.00013698,2]
[329864882,1718773849440,-500.0,0.00013698,2]
[329864883,1718773849450,-534.37,0.00013698,2]
[329864884,1718773849458,-500.0,0.00013698,2]
[329864885,1718773849468,-500.0,0.00013698,2]
[329864886,1718773849477,-500.0,0.00013698,2]
[329864887,1718773849486,-2308.85,0.00013698,2]
[329864888,1718773849495,-500.0,0.00013698,2]
[329864889,1718773849504,-500.0,0.00013698,2]
[329864890,1718773849513,-500.0,0.00013698,2]
[329864891,1718773849522,-500.0,0.00013698,2]
[329864892,1718773849531,-500.0,0.00013698,2]
[329864893,1718773849540,-941.24,0.00013698,2]
[329864894,1718773849550,-500.0,0.00013698,2]
[329864895,1718773849558,-500.0,0.00013698,2]
[329864896,1718773849567,-500.0,0.00013698,2]
[329864897,1718773849576,-684.58,0.00013698,2]
[329864898,1718773849586,-500.0,0.00013698,2]
[329864899,1718773849595,-961.01,0.00013698,2]
[329864900,1718773849604,-500.0,0.00013698,2]
[329864901,1718773849613,-744.23,0.00013698,2]
[329864902,1718773849625,-151.0,0.00013698,2]
[329864903,1718773849634,-151.0,0.00013698,2]
[329864904,1718773849643,-500.0,0.00013698,2]
[329864905,1718773849652,-151.0,0.00013698,2]
[329864906,1718773849662,-500.0,0.00013698,2]
[329864907,1718773849671,-151.0,0.00013698,2]
[329864908,1718773849680,-2179.1,0.00013698,2]
[329864909,1718773849689,-612.76,0.00013698,2]
[329864910,1718773849699,-500.0,0.00013698,2]
[329864911,1718773849708,-881.92,0.00013698,2]
[329864912,1718773849717,-500.0,0.00013698,2]
[329864913,1718773849726,-984.81,0.00013698,2]
[329864914,1718773849736,-873.47,0.00013698,2]
[329864915,1718773849745,-500.0,0.00013698,2]
[329864916,1718773849754,-504.64077641,0.00013698,2]
[329864917,1718773849763,-500.0,0.00013698,2]
[329864918,1718773849772,-1334.07,0.00013698,2]
[329864919,1718773849782,-502.26342523,0.00013698,2]
[329864920,1718773849791,-504.9979754,0.00013698,2]
[329864921,1718773849800,-500.0,0.00013698,2]
[329864922,1718773849809,-500.0,0.00013698,2]
[329864923,1718773849818,-1953.34,0.00013698,2]
[329864924,1718773849827,-1628.33,0.00013698,2]
[329864925,1718773849836,-501.82328589,0.00013698,2]
[329864926,1718773849846,-500.0,0.00013698,2]
[329864927,1718773849855,-500.0,0.00013698,2]
[329864928,1718773849864,-898.78,0.00013698,2]
[329864929,1718773849875,-508.60829795,0.00013698,2]
[329864930,1718773849885,-500.0,0.00013698,2]
[329864931,1718773849895,-1311.16,0.00013698,2]
[329864932,1718773849904,-929.03,0.00013698,2]
[329864933,1718773849914,-2090.41,0.00013698,2]
[329864934,1718773849923,-500.0,0.00013698,2]
[329864935,1718773849932,-987.18,0.00013698,2]
[329864936,1718773849941,-419.16242064,0.00013698,2]
[329864937,1718773849951,-828.84,0.00013698,2]
[329864938,1718773849960,-500.0,0.00013698,2]
[329864939,1718773849970,-500.0,0.00013698,2]
[329864940,1718773849979,-500.0,0.00013698,2]
[329864941,1718773849988,-866.41,0.00013698,2]
[329864942,1718773849998,-3055.28,0.00013698,2]
[329864943,1718773850008,-722.66,0.00013698,2]
[329864944,1718773850020,-500.0,0.00013698,2]
[329864945,1718773850029,-500.0,0.00013698,2]
[329864946,1718773850039,-517.2,0.00013698,2]
[329864947,1718773850048,-596.67,0.00013698,2]
[329864948,1718773850058,-500.0,0.00013698,2]
[329864949,1718773850069,-500.0,0.00013698,2]
[329864950,1718773850079,-506.56688677,0.00013698,2]
[329864951,1718773850089,-500.0,0.00013698,2]
[329864952,1718773850101,-500.0,0.00013698,2]
[329864953,1718773850112,-500.0,0.00013698,2]
[329864954,1718773850123,-503.17884389,0.00013698,2]
[329864955,1718773850132,-500.0,0.00013698,2]
[329864956,1718773850141,-308.07541019,0.00013698,2]
[329864957,1718773850149,-600.09,0.00013698,2]
[329864958,1718773850159,-500.0,0.00013698,2]
[329864959,1718773850168,-677.65,0.00013698,2]
[329864960,1718773850177,-1151.85,0.00013698,2]
[329864961,1718773850186,-500.0,0.00013698,2]
[329864962,1718773850196,-573.73831732,0.00013698,2]
[329864963,1718773850207,-1706.37,0.00013698,2]
[329864964,1718773850216,-500.0,0.00013698,2]
[329864965,1718773850228,-1099.38,0.00013698,2]
[329864966,1718773850242,-2685.97,0.00013698,2]
[329864967,1718773850251,-500.0,0.00013698,2]
[329864968,1718773850260,-500.0,0.00013698,2]
[329864969,1718773850270,-500.0,0.00013698,2]
[329864970,1718773850281,-1483.57,0.00013698,2]
[329864971,1718773850290,-1000.0,0.00013698,5]
[329864972,1718773850300,-500.0,0.00013698,2]
[329864973,1718773850311,-901.64,0.00013698,2]
[329864974,1718773850321,-534.10543242,0.00013698,2]
[329864975,1718773850330,-1630.22,0.00013698,2]
[329864976,1718773850340,-500.0,0.00013698,2]
[329864977,1718773850351,-766.91,0.00013698,2]
[329864978,1718773850361,-596.31066338,0.00013698,2]
[329864979,1718773850374,-500.0,0.00013698,2]
[329864980,1718773850384,-500.0,0.00013698,2]
[329864981,1718773850394,-500.0,0.00013698,2]
[329864982,1718773850406,-586.85491944,0.00013698,2]
[329864983,1718773850420,-1827.20296433,0.00013698,2]
[329864984,1718773850431,-500.0,0.00013698,2]
[329864985,1718773850441,-552.44,0.00013698,2]
[329864986,1718773850451,-500.0,0.00013698,2]
[329864987,1718773850460,-1469.84,0.00013698,2]
[329864988,1718773850471,-494.29401434,0.00013698,2]
[329864989,1718773850485,-500.0,0.00013698,2]
[329864990,1718773850494,-500.0,0.00013698,2]
[329864991,1718773850503,-500.0,0.00013698,2]
[329864992,1718773850513,-500.0,0.00013698,2]
[329864993,1718773850523,-500.0,0.00013698,2]
[329864994,1718773850531,-500.0,0.00013698,2]
[329864995,1718773850541,-500.0,0.00013698,2]
[329864996,1718773850551,-548.69,0.00013698,2]
[329864997,1718773850560,-1291.44,0.00013698,2]
[329864998,1718773850569,-500.0,0.00013698,2]
[329864999,1718773850579,-500.0,0.00013698,2]
[329865000,1718773850588,-1454.84,0.00013698,2]
[329865001,1718773850597,-500.0,0.00013698,2]
[329865002,1718773850606,-500.0,0.00013698,2]
[329865003,1718773850619,-500.0,0.00013698,2]
[329865004,1718773850629,-500.0,0.00013698,2]
[329865005,1718773850638,-630.97,0.00013698,2]
[329865006,1718773850647,-893.64,0.00013698,2]
[329865007,1718773850656,-500.0,0.00013698,2]
[329865008,1718773850665,-500.0,0.00013698,2]
[329865009,1718773850674,-500.0,0.00013698,2]
[329865010,1718773850684,-728.52,0.00013698,2]
[329865011,1718773850693,-500.0,0.00013698,2]
[329865012,1718773850702,-1858.88,0.00013698,2]
[329865013,1718773850712,-2755.07,0.00013698,2]
[329865014,1718773850721,-887.45,0.00013698,2]
[329865015,1718773850730,-603.22,0.00013698,2]
[329865016,1718773850740,-500.0,0.00013698,2]
[329865017,1718773850749,-1233.75,0.00013698,2]
[329865018,1718773850758,-1078.58,0.00013698,2]
[329865019,1718773850767,-2320.69,0.00013698,2]
[329865020,1718773850776,-2555.06,0.00013698,2]
[329865021,1718773850786,-500.0,0.00013698,2]
[329865022,1718773850794,-536.24455689,0.00013698,2]
[329865023,1718773850804,-1433.32,0.00013698,2]
[329865024,1718773850813,-500.0,0.00013698,2]
[329865025,1718773850822,-1690.3,0.00013698,2]
[329865026,1718773850832,-500.0,0.00013698,2]
[329865027,1718773850841,-500.0,0.00013698,2]
[329865028,1718773850851,-500.0,0.00013698,2]
[329865029,1718773850860,-500.0,0.00013698,2]
[329865030,1718773850869,-500.0,0.00013698,2]
[329865031,1718773850880,-687.07,0.00013698,2]
[329865032,1718773850889,-500.0,0.00013698,2]
[329865033,1718773850900,-729.98,0.00013698,2]
[329865034,1718773850910,-1058.05,0.00013698,2]
[329865035,1718773850919,-604.18,0.00013698,2]
[329865036,1718773850928,-509.28122946,0.00013698,2]
[329865037,1718773850939,-837.42,0.00013698,2]
[329865038,1718773850948,-562.42,0.00013698,2]
[329865039,1718773850957,-506.36318003,0.00013698,2]
[329865040,1718773850966,-500.0,0.00013698,2]
[329865041,1718773850976,-500.0,0.00013698,2]
[329865042,1718773850985,-500.0,0.00013698,2]
[329865043,1718773850994,-681.07,0.00013698,2]
[329865044,1718773851003,-500.0,0.00013698,2]
[329865045,1718773851012,-500.0,0.00013698,2]
[329865046,1718773851021,-500.0,0.00013698,2]
[329865047,1718773851030,-500.0,0.00013698,2]
[329865048,1718773851039,-500.0,0.00013698,2]
[329865049,1718773851049,-500.0,0.00013698,2]
[329865050,1718773851059,-2202.03,0.00013698,2]
[329865051,1718773851067,-228.68699738,0.00013698,2]
[329865052,1718773851101,-271.31300262,0.00013698,2]
[329865053,1718773851111,-369.31219207,0.00013698,2]
[329865054,1718773851123,-130.68780793,0.00013698,2]
[329865055,1718773851132,-1317.53,0.00013698,2]
[329865056,1718773851141,-1593.99,0.00013698,2]
[329865057,1718773851151,-699.67,0.00013698,2]
[329865058,1718773851160,-636.74,0.00013698,2]
[329865059,1718773851169,-500.0,0.00013698,2]
[329865060,1718773851178,-350.76814,0.00013698,2]
[329865061,1718773851190,-149.23186,0.00013698,2]
[329865062,1718773851199,-283.26814,0.00013698,2]
[329865063,1718773851210,-1454.72186,0.00013698,2]
[329865064,1718773851220,-500.0,0.00013698,2]
[329865065,1718773851231,-500.0,0.00013698,2]
[329865066,1718773851242,-813.21,0.00013698,2]
[329865067,1718773851252,-500.0,0.00013698,2]
[329865068,1718773851261,-702.66,0.00013698,2]
[329865069,1718773851271,-500.0,0.00013698,2]
[329865070,1718773851280,-624.60752309,0.00013698,2]
[329865071,1718773851289,-2178.56,0.00013698,2]
[329865072,1718773851299,-648.56,0.00013698,2]
[329865073,1718773851307,-500.0,0.00013698,2]
[329865074,1718773851318,-500.0,0.00013698,2]
[329865075,1718773851328,-500.0,0.00013698,2]
[329865076,1718773851337,-921.73,0.00013698,2]
[329865077,1718773851346,-503.65667178,0.00013698,2]
[329865078,1718773851355,-1685.92,0.00013698,2]
[329865079,1718773851364,-789.86,0.00013698,2]
[329865080,1718773851374,-500.0,0.00013698,2]
[329865081,1718773851383,-500.0,0.00013698,2]
[329865082,1718773851392,-500.0,0.00013698,2]
[329865083,1718773851402,-704.91,0.00013698,2]
[329865084,1718773851412,-2349.44,0.00013698,2]
[329865086,1718773851421,-500.0,0.00013698,2]
[329865087,1718773851430,-592.32,0.00013698,2]
[329865088,1718773851439,-847.74,0.00013698,2]
[329865089,1718773851449,-500.0,0.00013698,2]
[329865090,1718773851459,-520.68267886,0.00013698,2]
[329865091,1718773851467,-500.0,0.00013698,2]
[329865092,1718773851476,-500.0,0.00013698,2]
[329865093,1718773851486,-500.0,0.00013698,2]
[329865094,1718773851495,-500.0,0.00013698,2]
[329865095,1718773851504,-793.38,0.00013698,2]
[329865096,1718773851513,-684.12100317,0.00013698,2]
[329865097,1718773851526,-508.78899683,0.00013698,2]
[329865098,1718773851535,-500.0,0.00013698,2]
[329865099,1718773851544,-500.0,0.00013698,2]
[329865100,1718773851553,-374.47278883,0.00013698,2]
[329865101,1718773851563,-500.0,0.00013698,2]
[329865102,1718773851572,-500.0,0.00013698,2]
[329865103,1718773851581,-500.0,0.00013698,2]
[329865104,1718773851590,-511.34463583,0.00013698,2]
[329865105,1718773851599,-1242.95,0.00013698,2]
[329865106,1718773851608,-500.0,0.00013698,2]
[329865107,1718773851617,-500.0,0.00013698,2]
[329865108,1718773851627,-1189.49,0.00013698,2]
[329865109,1718773851636,-505.23033759,0.00013698,2]
[329865110,1718773851645,-500.0,0.00013698,2]
[329865111,1718773851654,-500.0,0.00013698,2]
[329865112,1718773851663,-929.23,0.00013698,2]
[329865113,1718773851672,-500.0,0.00013698,2]
[329865114,1718773851680,-500.0,0.00013698,2]
[329865115,1718773851690,-500.0,0.00013698,2]
[329865116,1718773851699,-506.87563218,0.00013698,2]
[329865117,1718773851708,-614.61,0.00013698,2]
[329865118,1718773851717,-500.0,0.00013698,2]
[329865119,1718773851726,-500.0,0.00013698,2]
[329865120,1718773851735,-503.85789867,0.00013698,2]
[329865121,1718773851745,-1770.16,0.00013698,2]
[329865122,1718773851754,-500.0,0.00013698,2]
[329865123,1718773851763,-500.0,0.00013698,2]
[329865124,1718773851773,-500.0,0.00013698,2]
[329865125,1718773851782,-500.0,0.00013698,2]
[329865126,1718773851791,-500.0,0.00013698,2]
[329865127,1718773851800,-500.0,0.00013698,2]
[329865128,1718773851809,-500.0,0.00013698,2]
[329865129,1718773851818,-500.0,0.00013698,2]
[329865130,1718773851828,-1200.84,0.00013698,2]
[329865131,1718773851837,-1168.71,0.00013698,2]
[329865132,1718773851847,-562.4,0.00013698,2]
[329865133,1718773851856,-278.22334941,0.00013698,2]
[329865134,1718773851866,-500.0,0.00013698,2]
[329865135,1718773851875,-858.79,0.00013698,2]
[329865136,1718773851884,-500.0,0.00013698,2]
[329865137,1718773851894,-500.0,0.00013698,2]
[329865138,1718773851903,-500.0,0.00013698,2]
[329865139,1718773851913,-500.0,0.00013698,2]
[329865140,1718773851923,-575.27216014,0.00013698,2]
[329865141,1718773851932,-1621.64,0.00013698,2]
[329865142,1718773851943,-907.97,0.00013698,2]
[329865143,1718773851954,-1608.72,0.00013698,2]
[329865144,1718773851965,-500.0,0.00013698,2]
[329865145,1718773851976,-505.40778604,0.00013698,2]
[329865146,1718773851988,-500.0,0.00013698,2]
[329865147,1718773851998,-1715.9938792,0.00013698,2]
[329865148,1718773852267,-264.7761208,0.00013698,2]
[329865149,1718773852277,-500.0,0.00013698,2]
[329865150,1718773852287,-1437.62,0.00013698,2]
[329865151,1718773852297,-386.40379972,0.00013698,2]
[329865152,1718773852329,-113.59620028,0.00013698,2]
[329865153,1718773852338,-533.28,0.00013698,2]
[329865154,1718773852348,-1513.48,0.00013698,2]
[329865155,1718773852357,-500.0,0.00013698,2]
[329865156,1718773852366,-500.0,0.00013698,2]
[329865157,1718773852378,-500.0,0.00013698,2]
[329865158,1718773852387,-1133.08,0.00013698,2]
[329865159,1718773852397,-500.0,0.00013698,2]
[329865160,1718773852407,-500.0,0.00013698,2]
[329865161,1718773852416,-500.0,0.00013698,2]
[329865162,1718773852425,-188.82357121,0.00013698,2]
[329865163,1718773852434,-9.49008413,0.00013698,2]
[329865164,1718773852447,-1033.05017563,0.00013698,2]
[329865165,1718773852589,-771.33974024,0.00013698,2]
[329865166,1718773852598,-500.0,0.00013698,2]
[329865167,1718773852607,-500.0,0.00013698,2]
[329865168,1718773852616,-500.0,0.00013698,2]
[329865169,1718773852626,-399.29473135,0.00013698,2]
[329865170,1718773852636,-846.07,0.00013698,2]
[329865171,1718773852645,-500.0,0.00013698,2]
[329865172,1718773852654,-654.39,0.00013698,2]
[329865173,1718773852663,-500.0,0.00013698,2]
[329865174,1718773852673,-500.0,0.00013698,2]
[329865175,1718773852682,-516.69,0.00013698,2]
[329865176,1718773852692,-751.7,0.00013698,2]
[329865177,1718773852702,-500.0,0.00013698,2]
[329865178,1718773852712,-500.0,0.00013698,2]
[329865179,1718773852722,-500.0,0.00013698,2]
[329865180,1718773852731,-802.00724,0.00013698,2]
[329865186,1718774393725,157.061914,0.00025,60]
[329865187,1718774397782,157.061914,0.00025,60]
[329865188,1718774401467,-6837.50475033,9.954e-05,2]
[329865189,1718774401488,-19592.60690809,9.955e-05,2]
[329865190,1718774401510,-692377.99831965,9.956e-05,2]
[329865191,1718774401530,-4394.93233611,9.957e-05,2]
[329865192,1718774401549,-346.57644257,9.957e-05,2]
[329865193,1718774401570,-177248.45293727,9.957e-05,2]
[329865194,1718774401642,157.061914,0.00025,61]
[329865195,1718774402835,157.061914,0.00025,61]
[329865196,1718774405704,157.061914,0.00025,62]
[329865197,1718774407908,157.061914,0.00025,62]
[329865198,1718774419512,-536.28,0.00010764,2]
[329865199,1718774419534,-500.0,0.00010958,2]
[329865200,1718774419556,-500.0,0.00010958,2]
[329865201,1718774419578,-500.0,0.00010958,2]
[329865202,1718774419598,-500.0,0.00010958,2]
[329865203,1718774419618,-500.0,0.00010958,2]
[329865204,1718774419640,-500.0,0.00010958,2]
[329865205,1718774419663,-500.0,0.00010958,2]
[329865206,1718774419682,-500.0,0.00010958,2]
[329865207,1718774419702,-500.0,0.00010958,2]
[329865208,1718774419723,-500.0,0.00010958,2]
[329865209,1718774419745,-500.0,0.00010958,2]
[329865210,1718774419766,-500.0,0.00010958,2]
[329865211,1718774419787,-500.0,0.00010958,2]
[329865212,1718774419808,-500.0,0.00010958,2]
[329865213,1718774419828,-500.0,0.00010958,2]
[329865214,1718774419850,-500.0,0.00010958,2]
[329865215,1718774419870,-500.0,0.00010958,2]
[329865216,1718774419890,-220.56,0.00010958,2]
[329865217,1718774419910,-150.0,0.00012025,2]
[329865218,1718774419930,-250.0,0.0001269,2]
[329865219,1718774419950,-250.23,0.00012707,2]
[329865220,1718774419970,-200.0,0.00012713,2]
[329865221,1718774419992,-3676.16,0.00012714,2]
[329865222,1718774420015,-250.23,0.00012742,2]
[329865223,1718774420036,-1000.0,0.00012756,2]
[329865224,1718774420061,-250.23,0.00012777,2]
[329865225,1718774420083,-250.23,0.00012812,2]
[329865226,1718774420104,-250.23,0.00012847,2]
[329865227,1718774420128,-250.23,0.00012881,2]
[329865228,1718774420152,-1282.36,0.00012893,2]
[329865229,1718774420172,-693.68745067,0.000129,2]
[329865230,1718774420192,-693.68745065,0.000129,2]
[329865231,1718774420216,-693.68745065,0.000129,2]
[329865232,1718774420235,-693.68745065,0.000129,2]
[329865233,1718774420256,-693.68745065,0.000129,2]
[329865234,1718774420280,-250.23,0.00012916,2]
[329865235,1718774420300,-250.23,0.00012951,2]
[329865236,1718774420321,-250.23,0.00012986,2]
[329865237,1718774420340,-1149.13,0.00012999,2]
[329865238,1718774420361,-110158.22485563,0.00012999,2]
[329865239,1718774420380,-815666.70619708,0.00013,2]
[329865261,1718774948052,2456.7535948,9.75e-05,2]
[329865275,1718775014343,133384.70309637,9.75e-05,2]
[329865276,1718775014368,132418.18544476,9.75e-05,2]
[329865277,1718775029573,155.0,9.75e-05,2]
[329865292,1718775032483,-410.17832564,0.00010501,2]
[329865294,1718775032493,-328.31347017,0.00010502,2]
[329865295,1718775032503,-538.43,0.00010503,2]
[329865296,1718775032512,-300.0,0.00010957,2]
[329865298,1718775032523,-1453.42,0.00010958,2]
[329865300,1718775032532,-1014.38121588,0.00010958,2]
[329865302,1718775032632,-439.03878412,0.00010958,2]
[329865303,1718775032642,-1453.42,0.00010958,2]
[329865304,1718775032651,-1453.42,0.00010958,2]
[329865305,1718775032660,-1453.42,0.00010958,2]
[329865306,1718775032669,-1453.42,0.00010958,2]
[329865307,1718775032679,-1453.42,0.00010958,2]
[329865308,1718775032689,-1453.42,0.00010958,2]
[329865309,1718775032699,-1453.42,0.00010958,2]
[329865310,1718775032708,-1453.42,0.00010958,2]
[329865311,1718775032717,-1453.42,0.00010958,2]
[329865312,1718775032727,-1453.42,0.00010958,2]
[329865313,1718775032736,-1453.42,0.00010958,2]
[329865314,1718775032745,-1453.42,0.00010958,2]
[329865315,1718775032754,-1453.42,0.00010958,2]
[329865316,1718775032763,-1453.42,0.00010958,2]
[329865317,1718775032773,-1453.42,0.00010958,2]
[329865318,1718775032782,-1453.42,0.00010958,2]
[329865319,1718775032792,-1453.42,0.00010958,2]
[329865320,1718775032801,-1453.42,0.00010958,2]
[329865321,1718775032810,-190.15773507,0.00010958,2]
[329865339,1718775033317,-1263.26226493,0.00010958,2]
[329865340,1718775033327,-1453.42,0.00010958,2]
[329865341,1718775033337,-1453.42,0.00010958,2]
[329865342,1718775033346,-1453.58,0.00010958,2]
[329865343,1718775033356,-420.0,0.00012041,2]
[329865344,1718775033365,-250.0,0.00012378,2]
[329865345,1718775033374,-152.91,0.00012387,2]
[329865346,1718775033384,-1000.0,0.00012415,2]
[329865347,1718775033393,-152.91,0.00012425,2]
[329865348,1718775033403,-152.91,0.00012463,2]
[329865349,1718775033412,-626.52827106,0.00012478,2]
[329865350,1718775033421,-854.57,0.00012489,2]
[329865351,1718775033431,-152.91,0.00012501,2]
[329865352,1718775033441,-152.91,0.00012539,2]
[329865353,1718775033450,-152.91,0.00012577,2]
[329865354,1718775033459,-152.91,0.00012615,2]
[329865355,1718775033469,-152.91,0.00012653,2]
[329865356,1718775033479,-152.91,0.00012691,2]
[329865357,1718775033489,-152.91,0.00012729,2]
[329865358,1718775033499,-538.43,0.00012767,2]
[329865359,1718775033509,-152.91,0.00012767,2]
[329865360,1718775033519,-152.91,0.00012805,2]
[329865361,1718775033530,-152.91,0.00012843,2]
[329865362,1718775033543,-152.91,0.0001288,2]
[329865363,1718775033554,-197.7033,0.000129,2]
[329865364,1718775033564,-260.13279402,0.000129,2]
[329865365,1718775033574,-152.91,0.00012918,2]
[329865366,1718775033584,-152.91,0.00012956,2]
[329865367,1718775033596,-334.9025103,0.00012978,2]
[329865368,1718775033608,-152.91,0.00012994,2]
[329865369,1718775033618,-161.30518604,0.00012998,2]
[329865370,1718775033628,-886.64940994,0.00012998,2]
[329865371,1718775033639,-3983.20822826,0.00012998,2]
[329865372,1718775033648,-155.73838791,0.00012998,2]
[329865373,1718775033658,-156.74487348,0.00012998,2]
[329865374,1718775033667,-155.32853517,0.00012998,2]
[329865375,1718775033679,-880.04673369,0.00012998,2]
[329865376,1718775033690,-794.90150262,0.00012998,2]
[329865377,1718775033700,-543.63325763,0.00012998,2]
[329865378,1718775033709,-1025.59553728,0.00012999,2]
[329865379,1718775033720,-279585.40338471,0.00013,2]
[329865380,1718775033730,-1365.16009841,0.00013,2]
[329865381,1718775033740,-411.1717739,0.00013,2]
[329865382,1718775033750,-290.13912195,0.00013,2]
[329865383,1718775033759,-364.11936333,0.00013,2]
[329865384,1718775033770,-155.15560064,0.00013,2]
[329865385,1718775033779,-951.48016336,0.00013,2]
[329865386,1718775033788,-19795.83497398,0.00013,2]
[329865387,1718775033798,-310.11693219,0.00013,2]
[329865388,1718775033807,-29999.99,0.00013056,2]
[329865389,1718775033817,-4417.99,0.00013056,2]
[329865390,1718775033826,-14571.45,0.00013056,2]
[329865391,1718775033836,-260.13279399,0.00013078,2]
[329865392,1718775033845,-587.0,0.00013232,2]
[329865393,1718775033856,-260.13279399,0.00013256,2]
[329865394,1718775033866,-1029.74089972,0.00013424,2]
[329865395,1718775033876,-260.13279399,0.00013434,2]
[329865396,1718775033886,-152.0,0.00013465,2]
[329865397,1718775033895,-1271.0,0.00013472,2]
[329865398,1718775033906,-1196.0,0.00013472,2]
[329865399,1718775033916,-12742.12384478,0.000135,2]
[329865400,1718775033926,-150.0,0.00013561,2]
[329865401,1718775033936,-150.0,0.00013561,2]
[329865402,1718775033945,-150.0,0.00013561,2]
[329865403,1718775033955,-150.0,0.00013561,2]
[329865404,1718775033965,-150.0,0.00013561,2]
[329865405,1718775033975,-150.0,0.00013561,2]
[329865406,1718775033985,-150.0,0.00013561,2]
[329865407,1718775033994,-202.17371,0.00013561,2]
[329865408,1718775034004,-177.53801076,0.00013569,2]
[329865409,1718775034015,-362.37028598,0.00013569,2]
[329865410,1718775034029,-500.0,0.00013587,2]
[329865411,1718775034038,-500.0,0.00013588,2]
[329865412,1718775034048,-500.0,0.00013588,2]
[329865413,1718775034057,-500.0,0.00013588,2]
[329865414,1718775034066,-182.57487124,0.00013597,2]
[329865415,1718775034075,-11436.94563686,0.00013598,2]
[329865416,1718775034084,-2000.0,0.000136,2]
[329865417,1718775034095,-260.13279399,0.00013612,2]
[329865418,1718775034106,-150.0,0.00013671,2]
[329865419,1718775034116,-5482.5871988,0.00013687,2]
[329865420,1718775034126,-1505.4578351,0.00013687,2]
[329865421,1718775034136,-4401.16981497,0.00013687,2]
[329865422,1718775034220,-7395.56684273,0.00013687,2]
[329865423,1718775034231,-79588.0081106,0.00013687,2]
[329865424,1718775034241,-2000.0,0.0001369,2]
[329865425,1718775034251,-208.21980519,0.00013696,2]
[329865426,1718775034261,-181.51030868,0.00013696,2]
[329865427,1718775034274,-1791.42468934,0.00013696,2]
[329865428,1718775034283,-336.65219068,0.00013696,2]
[329865429,1718775034293,-30052.16403275,0.00013697,2]
[329865430,1718775034304,-298.33768256,0.00013697,2]
[329865431,1718775034314,-209.15905144,0.00013697,2]
[329865432,1718775034324,-5564.10895777,0.00013697,2]
[329865433,1718775034333,-500.0,0.00013698,2]
[329865434,1718775034343,-500.0,0.00013698,2]
[329865435,1718775034352,-500.0,0.00013698,2]
[329865436,1718775034362,-615.98311425,0.00013698,2]
[329865437,1718775034372,-582.1365474,0.00013698,2]
[329865438,1718775034381,-500.0,0.00013698,2]
[329865439,1718775034391,-549.55802722,0.00013698,2]
[329865440,1718775034401,-500.0,0.00013698,2]
[329865441,1718775034411,-500.0,0.00013698,2]
[329865442,1718775034420,-500.0,0.00013698,2]
[329865443,1718775034430,-500.0,0.00013698,2]